bitfinex/quotes_SOLUSD_20220129
["timestamp","ask_amount","ask_price","bid_price","bid_amount"]
[1643472917143,12.34645227,94.205,94.092,6.0]
[1643472917443,41.11787803,94.199,94.092,6.0]
[1643472917849,12.34645227,94.198,94.092,6.0]
[1643472918044,15.944,94.19,94.08,6.0]
[1643472918245,12.76,94.18,94.08,6.0]
[1643472918464,12.76,94.18,94.072,6.0]
[1643472918666,12.76,94.18,94.062,175.42001754]
[1643472918965,15.95,94.15,94.062,0.04201754]
[1643472919166,43.46280702,94.149,94.062,0.04201754]
[1643472919368,56.61092596,94.149,94.062,0.04201754]
[1643472919565,93.01939844,94.149,94.062,0.04201754]
[1643472919765,13.14811894,94.148,94.062,0.04201754]
[1643472920166,13.14811894,94.147,94.062,0.04201754]
[1643472920569,2.95669142,94.146,94.062,0.04201754]
[1643472920973,0.31024323,94.099,94.075,0.00812092]
[1643472921171,12.76,94.09,94.075,0.00624184]
[1643472921373,18.82119837,94.09,94.075,0.00624184]
[1643472921573,18.20899902,94.089,94.075,0.00624184]
[1643472921771,31.35711796,94.089,94.075,0.00624184]
[1643472921971,15.963,94.08,93.945,2.94318565]
[1643472922167,12.76,94.07,93.946,104.9]
[1643472922368,45.3182126,94.069,93.94,2.94318565]
[1643472922569,58.46633154,94.069,93.92,5.2654741]
[1643472922771,58.46633154,94.069,93.921,100.2275]
[1643472922970,13.14811894,94.068,93.921,100.2275]
[1643472923170,13.14811894,94.068,93.922,104.9]
[1643472923373,31.24849574,94.067,93.921,23.4447]
[1643472923571,0.08956394,93.986,93.92,5.2654741]
[1643472923772,33.1318928,93.979,93.906,3.00607863]
[1643472923976,33.1318928,93.979,93.852,0.2]
[1643472923977,33.1318928,93.979,93.875,2.94318565]
[1643472924275,65.0,93.977,93.823,0.2]
[1643472924476,159.51,93.92,93.792,2.94318565]
[1643472924672,159.51,93.92,93.76,0.2]
[1643472924673,2.95669142,93.872,93.76,0.2]
[1643472924872,12.76,93.88,93.759,0.13692882]
[1643472925471,15.0814948,93.879,93.759,0.13692882]
[1643472925672,0.3088395,93.85,93.809,0.00213086]
[1643472925870,12.76,93.84,93.809,0.00213086]
[1643472926273,0.30779895,93.824,93.809,0.00213086]
[1643472926575,18.82119837,93.82,93.809,0.00213086]
[1643472926772,34.83119837,93.82,93.809,0.00213086]
[1643472927174,2.95669142,93.819,93.809,0.00213086]
[1643472927675,12.63035894,93.819,93.809,0.00213086]
[1643472927972,2.95669142,93.819,93.809,0.00213086]
[1643472928173,34.83119837,93.82,93.809,0.00213086]
[1643472928374,2.95669142,93.819,93.809,0.00213086]
[1643472928574,28.903716,93.819,93.809,0.00213086]
[1643472929073,8.07956444,93.819,93.809,0.00213086]
[1643472930285,34.83119837,93.82,93.759,0.13692882]
[1643472930475,16.011,93.81,93.759,0.13692882]
[1643472930674,12.76,93.85,93.759,0.13692882]
[1643472931086,42.35659929,93.849,93.759,0.13692882]
[1643472931477,16.003,93.84,93.759,0.13692882]
[1643472931678,12.76,93.83,93.759,0.13692882]
[1643472932475,28.766,93.83,93.759,0.13692882]
[1643472932676,28.766,93.83,93.588,2.94318565]
[1643472932677,65.0,93.784,93.588,2.94318565]
[1643472932876,65.0,93.784,93.56,593.6859891]
[1643472932877,0.13692882,93.759,93.599,3.0]
[1643472933076,12.76,93.75,93.601,11.15042701]
[1643472933283,12.76,93.74,93.571,47.25787631]
[1643472933581,16.029,93.69,93.571,47.25787631]
[1643472933777,12.76,93.68,93.571,46.75787631]
[1643472933977,12.76,93.68,93.571,44.75787631]
[1643472934179,27.90741173,93.749,93.571,44.75787631]
[1643472934381,12.76,93.7,93.571,44.75787631]
[1643472934581,12.76,93.69,93.571,44.75787631]
[1643472935182,0.32302106,93.644,93.516,0.5389498]
[1643472935380,12.76,93.63,93.516,0.5389498]
[1643472935581,41.82136814,93.629,93.516,0.5389498]
[1643472935780,30.17105843,93.629,93.516,0.5389498]
[1643472935986,19.78457989,93.629,93.516,0.5389498]
[1643472936181,11.59520611,93.649,93.516,0.5389498]
[1643472936481,12.76,93.64,93.516,0.5389498]
[1643472936681,10.19162,93.647,93.516,0.5389498]
[1643472936682,12.76,93.63,93.516,0.5389498]
[1643472936886,22.79969844,93.629,93.516,0.5389498]
[1643472937087,22.79969844,93.628,93.537,2.70073794]
[1643472937287,16.038,93.64,93.537,2.70073794]
[1643472937482,16.038,93.64,93.519,2.70073794]
[1643472937684,28.798,93.64,93.519,2.70073794]
[1643472937883,22.79969844,93.639,93.519,2.70073794]
[1643472938089,22.79969844,93.639,93.516,0.5389498]
[1643472938090,6.0,93.63,93.516,0.5389498]
[1643472938284,34.799,93.63,93.516,0.5389498]
[1643472938485,22.25576245,93.629,93.516,0.5389498]
[1643472938784,40.84144406,93.629,93.516,0.5389498]
[1643472938986,22.25576245,93.628,93.516,0.5389498]
[1643472939186,22.25576245,93.627,93.521,2.70073794]
[1643472939388,22.25576245,93.626,93.53,0.25]
[1643472939592,22.25576245,93.625,93.53,0.25]
[1643472939788,22.25576245,93.624,93.53,0.25]
[1643472939994,12.76,93.64,93.542,6.0]
[1643472940189,22.25576245,93.639,93.542,6.0]
[1643472940391,22.25576245,93.639,93.54,0.25]
[1643472940591,6.0,93.629,93.54,0.25]
[1643472940991,12.76,93.63,93.516,0.5389498]
[1643472941192,6.0,93.62,93.516,0.5389498]
[1643472941394,23.05814427,93.619,93.516,0.5389498]
[1643472941792,41.40389875,93.619,93.516,0.5389498]
[1643472941995,23.05814427,93.618,93.524,2.70073794]
[1643472942202,6.0,93.62,93.524,2.70073794]
[1643472942394,12.76,93.65,93.524,2.70073794]
[1643472942596,12.76,93.68,93.558,2.70073794]
[1643472942798,22.59352796,93.679,93.558,2.70073794]
[1643472942997,22.59352796,93.678,93.57,16.024]
[1643472943195,0.0060807,93.706,93.599,0.3041963]
[1643472943402,1.595594,93.825,93.61,12.76]
[1643472943598,22.59352796,93.815,93.61,12.76]
[1643472943894,22.59352796,93.815,93.629,0.30536688]
[1643472944097,16.007,93.81,93.65,16.012]
[1643472944294,40.1380989,93.808,93.65,29.022]
[1643472944499,12.76,93.8,93.66,6.0]
[1643472944699,10.19162,93.806,93.67,12.76]
[1643472945102,40.1380989,93.808,93.68,6.0]
[1643472945402,23.9956,93.872,93.68,35.017]
[1643472945403,86.61071882,93.87,93.68,35.017]
[1643472945598,12.76,93.86,93.682,104.9]
[1643472945798,33.26971882,93.87,93.691,62.99]
[1643472945998,33.26971882,93.87,93.701,68.99]
[1643472946205,38.52359198,93.869,93.71,12.76]
[1643472946399,15.999,93.86,93.73,15.998]
[1643472946598,38.52359198,93.869,93.74,6.0]
[1643472946799,38.52359198,93.869,93.74,6.25]
[1643472947001,38.52359198,93.869,93.741,6.0]
[1643472947203,38.52359198,93.869,93.742,104.9]
[1643472947500,38.52359198,93.869,93.752,6.0]
[1643472947699,38.52359198,93.869,93.75,28.755]
[1643472947999,38.52359198,93.869,93.76,6.0]
[1643472948199,38.52359198,93.869,93.76,18.76]
[1643472948398,38.52359198,93.869,93.76,19.01]
[1643472948598,2.95669142,93.868,93.76,19.01]
[1643472948799,38.52359198,93.869,93.76,19.01]
[1643472949001,38.02359198,93.869,93.76,19.01]
[1643472949199,38.02359198,93.869,93.76,35.002]
[1643472949600,38.02359198,93.869,93.76,34.91217604]
[1643472949807,38.02359198,93.869,93.76,34.66217604]
[1643472950003,6.0,93.859,93.76,5.91017604]
[1643472950501,6.0,93.859,93.71,28.76]
[1643472950502,6.0,93.859,93.731,104.9]
[1643472950702,38.02359198,93.869,93.74,12.76]
[1643472951106,38.02359198,93.869,93.711,20.85401772]
[1643472951304,16.0,93.86,93.736,6.0]
[1643472951510,16.0,93.86,93.712,104.9]
[1643472951706,38.02359198,93.869,93.712,104.9]
[1643472951902,38.02359198,93.869,93.722,6.0]
[1643472952125,38.02359198,93.869,93.73,6.0]
[1643472952328,38.02359198,93.869,93.74,12.76]
[1643472952524,38.02359198,93.869,93.75,6.0]
[1643472953125,38.02359198,93.869,93.75,6.25]
[1643472953324,38.02359198,93.869,93.75,19.01]
[1643472953527,38.02359198,93.869,93.76,6.0]
[1643472953926,38.02359198,93.869,93.76,6.25]
[1643472954829,38.02359198,93.869,93.76,22.243]
[1643472955130,38.02359198,93.869,93.76,21.993]
[1643472955327,38.02359198,93.869,93.76,6.0]
[1643472955527,6.0,93.859,93.76,6.0]
[1643472955929,6.0,93.859,93.75,12.76]
[1643472956129,2.95669142,93.858,93.73,12.76]
[1643472956328,23.6591137,93.858,93.72,12.76]
[1643472956531,10.19162,93.857,93.72,12.76]
[1643472956732,10.51080228,93.857,93.72,12.76]
[1643472957135,35.61833103,93.846,93.72,28.759]
[1643472957631,35.61833103,93.846,93.73,6.0]
[1643472958033,13.4674937,93.845,93.73,6.0]
[1643472958232,16.004,93.84,93.7,12.76]
[1643472958633,16.004,93.84,93.701,113.89777302]
[1643472958836,10.01080228,93.839,93.712,104.9]
[1643472959033,16.004,93.84,93.722,6.0]
[1643472959234,35.61833103,93.846,93.722,6.0]
[1643472959433,35.61833103,93.846,93.73,6.0]
[1643472959633,35.61833103,93.846,93.74,12.76]
[1643472959835,35.61833103,93.846,93.75,12.76]
[1643472960041,35.61833103,93.846,93.76,6.0]
[1643472960236,15.995,93.89,93.77,15.992]
[1643472960438,66.064,93.93,93.77,28.752]
[1643472960638,2.95669142,93.909,93.78,6.0]
[1643472960837,2.95669142,93.909,93.781,0.25]
[1643472961039,10.47469117,93.908,93.781,0.25]
[1643472961241,44.17601154,93.908,93.781,0.25]
[1643472961840,2.95669142,93.907,93.781,0.25]
[1643472962039,33.70132037,93.908,93.781,0.25]
[1643472962241,33.70132037,93.908,93.781,105.15]
[1643472962742,16.74260771,93.928,93.791,6.0]
[1643472962940,16.74260771,93.928,93.8,28.745]
[1643472963140,16.74260771,93.928,93.81,6.0]
[1643472963342,16.74260771,93.928,93.811,0.25]
[1643472963543,23.1373,93.939,93.811,105.15]
[1643472963741,36.84967791,93.938,93.811,0.25]
[1643472963943,6.0,93.929,93.821,6.0]
[1643472964219,6.0,93.929,93.82,15.982]
[1643472964342,6.0,93.929,93.821,0.25]
[1643472964941,6.0,93.929,93.83,6.0]
[1643472965344,6.0,93.929,93.831,0.25]
[1643472965542,6.0,93.929,93.82,6.0]
[1643472965752,22.74260771,93.929,93.82,6.0]
[1643472965948,22.74260771,93.929,93.82,15.982]
[1643472965949,6.0,93.929,93.82,15.982]
[1643472966152,36.84967791,93.938,93.83,6.0]
[1643472966458,16.74260771,93.952,93.831,62.99]
[1643472966648,2.95669142,93.964,93.842,62.99]
[1643472966850,2.95669142,93.964,93.843,0.25]
[1643472967044,2.95669142,93.964,93.852,6.0]
[1643472967244,2.95669142,93.964,93.853,0.25]
[1643472967445,2.95669142,93.982,93.853,63.24]
[1643472967749,21.979,93.99,93.853,63.24]
[1643472967952,16.74260771,93.998,93.864,62.99]
[1643472968252,78.86321714,94.074,93.863,6.0]
[1643472968253,16.74260771,94.024,93.872,104.9]
[1643472968446,33.29496759,94.023,93.875,62.99]
[1643472968648,33.29496759,94.023,93.891,104.9]
[1643472968848,36.25165901,94.023,93.902,104.9]
[1643472969046,33.29496759,94.023,93.913,62.99]
[1643472969249,33.29496759,94.023,93.914,0.25]
[1643472969648,33.29496759,94.023,93.92,6.0]
[1643472969952,33.29496759,94.023,93.93,15.964]
[1643472970147,33.29496759,94.023,93.921,105.15]
[1643472970347,2.95669142,94.022,93.921,0.25]
[1643472970553,2.95669142,94.022,93.89,12.76]
[1643472970749,10.19162,94.02,93.89,12.76]
[1643472970948,38.92462,94.02,93.86,15.976]
[1643472971149,6.0,94.01,93.853,23.2406]
[1643472971449,46.51506248,93.999,93.853,23.2406]
[1643472971652,10.19162,93.998,93.853,23.2406]
[1643472971862,11.64391304,93.998,93.853,23.2406]
[1643472972152,15.983,93.97,93.853,23.2406]
[1643472972363,44.48375737,93.969,93.853,23.2406]
[1643472973155,15.984,93.96,93.8,15.985]
[1643472973355,12.76,93.95,93.8,28.745]
[1643472973554,54.95408084,93.949,93.8,15.985]
[1643472973752,57.91077226,93.949,93.81,6.0]
[1643472974352,57.91077226,93.949,93.811,6.0]
[1643472974553,57.91077226,93.949,93.811,6.25]
[1643472974754,57.91077226,93.949,93.811,6.0]
[1643472974951,15.989,93.93,93.81,6.0]
[1643472975152,15.989,93.93,93.811,104.9]
[1643472975355,6.0,93.92,93.811,104.9]
[1643472975552,6.0,93.92,93.822,104.9]
[1643472975756,38.44960242,93.929,93.822,104.9]
[1643472975954,38.44960242,93.929,93.833,104.9]
[1643472976153,38.44960242,93.929,93.82,12.76]
[1643472976354,38.44960242,93.929,93.821,0.25]
[1643472976555,38.44960242,93.929,93.821,105.15]
[1643472976756,38.44960242,93.929,93.821,104.9]
[1643472977755,28.745,93.95,93.821,104.9]
[1643472978156,28.745,93.95,93.822,0.25]
[1643472978777,39.04375587,93.949,93.822,0.25]
[1643472978977,6.0,93.94,93.822,0.25]
[1643472979177,42.00044729,93.949,93.822,0.25]
[1643472979376,42.00044729,93.949,93.831,6.0]
[1643472979777,6.0,93.939,93.832,0.25]
[1643472980181,2.95669142,93.948,93.832,0.25]
[1643472981183,6.0,93.938,93.832,0.25]
[1643472981387,2.95669142,93.948,93.832,0.25]
[1643472981585,2.95669142,93.948,93.832,105.15]
[1643472983184,28.747,93.94,93.83,6.0]
[1643472983387,6.0,93.938,93.83,6.0]
[1643472983587,6.0,93.938,93.801,110.9]
[1643472983786,2.95669142,93.937,93.801,110.9]
[1643472983986,107.85669142,93.937,93.801,6.0]
[1643472984384,2.95669142,93.936,93.801,6.0]
[1643472984585,2.95669142,93.936,93.801,104.9]
[1643472984987,2.95669142,93.936,93.811,6.0]
[1643472985185,2.95669142,93.936,93.811,110.9]
[1643472985385,2.95669142,93.936,93.812,0.25]
[1643472986190,2.95669142,93.936,93.801,104.9]
[1643472986385,2.95669142,93.936,93.812,104.9]
[1643472986889,2.95669142,93.936,93.813,0.25]
[1643472987085,45.91436607,93.925,93.813,0.25]
[1643472987486,2.95669142,93.924,93.813,0.25]
[1643472987888,2.95669142,93.924,93.739,27.82440395]
[1643472987889,12.76,93.91,93.76,15.991]
[1643472988087,12.76,93.91,93.697,2.94318565]
[1643472988088,10.19162,93.898,93.697,2.94318565]
[1643472988287,12.76,93.89,93.693,119.79091476]
[1643472988488,10.19162,93.888,93.721,5.53596206]
[1643472988790,10.19162,93.888,93.7,12.76]
[1643472988988,16.003,93.86,93.705,104.9]
[1643472989190,12.76,93.85,93.705,104.9]
[1643472989489,35.48648836,93.849,93.705,104.9]
[1643472989690,55.87630303,93.849,93.705,104.9]
[1643472990092,35.48648836,93.849,93.73,15.997]
[1643472990292,35.48648836,93.849,93.775,0.25]
[1643472990893,35.48648836,93.849,93.73,15.997]
[1643472991300,20.38981467,93.848,93.73,15.997]
[1643472996003,30.69492806,93.848,93.712,75.8867]
[1643472996408,20.37464605,93.847,93.712,75.8867]
[1643472997003,30.67975944,93.847,93.712,75.8867]
[1643472997200,30.67975944,93.847,93.774,0.0051491]
[1643472997400,30.48769304,93.846,93.774,0.0051491]
[1643472997601,33.44438446,93.846,93.774,0.0051491]
[1643472997799,33.55787785,93.845,93.774,0.0051491]
[1643472998000,12.76,93.83,93.774,0.0051491]
[1643472998400,51.13183917,93.829,93.774,0.0051491]
[1643472998602,80.26175103,93.829,93.774,0.0051491]
[1643472998801,29.12991186,93.828,93.774,0.0051491]
[1643472999606,10.30511339,93.848,93.774,0.0051491]
[1643473000307,10.30511339,93.869,93.774,0.0051491]
[1643473000506,35.84922267,93.868,93.774,0.0051491]
[1643473001111,6.0,93.858,93.774,0.0051491]
[1643473001510,10.19162,93.856,93.774,0.0051491]
[1643473001707,0.32162236,93.835,93.774,0.0051491]
[1643473001907,12.76,93.82,93.774,0.0051491]
[1643473002110,49.35004384,93.819,93.774,0.0051491]
[1643473002509,10.1432769,93.818,93.774,0.0051491]
[1643473002708,104.9,93.817,93.774,0.0051491]
[1643473002926,107.85669142,93.817,93.774,0.0051491]
[1643473003110,10.1432769,93.816,93.774,0.0051491]
[1643473003311,30.85693552,93.816,93.774,0.0051491]
[1643473003710,27.9002441,93.815,93.774,0.0051491]
[1643473003911,12.76,93.81,93.774,0.0051491]
[1643473004512,6.0,93.8,93.774,0.0051491]
[1643473004913,34.34132094,93.799,93.774,0.0051491]
[1643473005512,12.76,93.81,93.774,0.0051491]
[1643473005812,17.7569672,93.835,93.774,0.0051491]
[1643473006012,10.1432769,93.837,93.774,0.0051491]
[1643473006312,27.86811439,93.837,93.774,0.0051491]
[1643473006512,2.95669142,93.836,93.774,0.0051491]
[1643473006715,48.36442031,93.836,93.774,0.0051491]
[1643473007113,10.1432769,93.835,93.774,0.0051491]
[1643473007714,12.76,93.83,93.774,0.0051491]
[1643473007913,6.0,93.825,93.774,0.0051491]
[1643473008316,65.0,93.828,93.69,1.47103089]
[1643473008516,13.09996832,93.824,93.676,1.47103089]
[1643473008716,12.76,93.81,93.659,49.52913089]
[1643473009015,104.9,93.768,93.656,1.47103089]
[1643473009220,104.9,93.768,93.63,16.013]
[1643473009221,115.09162,93.768,93.652,1.47103089]
[1643473009414,10.1432769,93.767,93.646,1.47103089]
[1643473009615,104.9,93.766,93.643,1.47103089]
[1643473009815,107.85669142,93.766,93.64,1.47103089]
[1643473010016,10.1432769,93.765,93.64,1.47103089]
[1643473010218,104.9,93.764,93.639,1.47103089]
[1643473010415,12.76,93.76,93.636,1.47103089]
[1643473010616,12.76,93.76,93.611,24.6505]
[1643473010617,45.90097182,93.753,93.635,1.47103089]
[1643473010827,12.76,93.75,93.63,1.47103089]
[1643473011018,12.76,93.75,93.64,6.0]
[1643473011222,10.19162,93.749,93.64,6.0]
[1643473011423,41.01642581,93.749,93.64,6.0]
[1643473011624,10.1432769,93.748,93.709,0.70047733]
[1643473011823,27.86811439,93.748,93.709,0.70047733]
[1643473012219,10.1432769,93.747,93.709,0.70047733]
[1643473012419,27.86811439,93.747,93.709,0.70047733]
[1643473012828,10.1432769,93.746,93.709,0.00047733]
[1643473013040,16.021,93.74,93.709,0.00047733]
[1643473013420,10.1432769,93.739,93.709,0.00047733]
[1643473013620,13.09996832,93.739,93.709,0.00047733]
[1643473014020,46.50583749,93.74,93.709,0.00047733]
[1643473014021,13.09996832,93.738,93.709,0.00047733]
[1643473014220,41.01642581,93.738,93.709,0.00047733]
[1643473014425,30.82480581,93.737,93.709,0.00047733]
[1643473014627,41.01642581,93.737,93.709,0.00047733]
[1643473014822,30.82480581,93.736,93.709,0.00047733]
[1643473015224,135.72480581,93.735,93.709,0.00047733]
[1643473015424,12.76,93.72,93.709,0.00047733]
[1643473015626,10.19162,93.719,93.709,0.00047733]
[1643473015828,30.87314891,93.719,93.709,0.00047733]
[1643473016025,41.01642581,93.719,93.709,0.00047733]
[1643473016225,135.72480581,93.718,93.602,1.47103089]
[1643473016424,104.9,93.716,93.595,1.47103089]
[1643473016625,16.029,93.7,93.59,1.47103089]
[1643473016829,39.41246308,93.698,93.591,1.47103089]
[1643473017029,39.41246308,93.698,93.59,1.47103089]
[1643473017232,39.41246308,93.698,93.594,1.47103089]
[1643473017430,27.86811439,93.697,93.594,1.47103089]
[1643473017830,27.86811439,93.696,93.595,1.47103089]
[1643473018230,27.86811439,93.695,93.592,1.47103089]
[1643473018429,12.76,93.69,93.587,1.47103089]
[1643473018634,12.76,93.69,93.586,1.47103089]
[1643473019031,6.0,93.68,93.588,1.47103089]
[1643473019232,38.52300012,93.679,93.586,1.47103089]
[1643473019656,6.0,93.68,93.587,1.47103089]
[1643473019855,6.0,93.68,93.588,1.47103089]
[1643473020254,6.0,93.68,93.589,0.25]
[1643473020456,27.86811439,93.694,93.589,0.25]
[1643473020656,6.0,93.684,93.589,1.72103089]
[1643473020859,6.0,93.684,93.59,0.25]
[1643473021061,17.72483749,93.713,93.593,1.47103089]
[1643473021262,17.72483749,93.713,93.599,104.9]
[1643473021562,10.1432769,93.736,93.616,2.70151032]
[1643473021760,10.1432769,93.736,93.621,62.99]
[1643473021961,12.76,93.8,93.617,0.25]
[1643473021962,12.76,93.8,93.65,12.76]
[1643473022164,12.76,93.82,93.671,62.99]
[1643473022360,12.76,93.84,93.68,12.76]
[1643473022562,12.76,93.84,93.69,6.0]
[1643473022766,38.95061793,93.826,93.691,63.24]
[1643473022961,38.95061793,93.826,93.691,65.94151032]
[1643473023162,9.69303468,93.844,93.702,62.99]
[1643473023361,9.69303468,93.844,93.703,0.25]
[1643473023561,9.69303468,93.844,93.712,6.0]
[1643473023761,9.69303468,93.844,93.713,0.25]
[1643473023962,6.0,93.834,93.713,6.25]
[1643473024161,44.71529876,93.833,93.715,104.9]
[1643473024361,6.0,93.834,93.724,104.9]
[1643473024564,12.76,93.85,93.724,104.9]
[1643473024763,12.76,93.85,93.725,0.25]
[1643473024962,12.76,93.85,93.734,6.0]
[1643473025162,12.76,93.85,93.724,104.9]
[1643473025461,104.9,93.839,93.694,23.0523]
[1643473025662,18.76,93.84,93.707,6.0]
[1643473025868,15.595783,93.838,93.704,6.0]
[1643473026467,25.787403,93.838,93.704,6.0]
[1643473026862,120.495783,93.837,93.704,6.0]
[1643473027065,16.007,93.83,93.704,6.0]
[1643473027264,47.23326247,93.829,93.704,6.0]
[1643473027662,6.0,93.819,93.704,6.0]
[1643473028063,6.0,93.819,93.705,6.0]
[1643473028862,6.0,93.819,93.706,0.25]
[1643473029263,6.0,93.819,93.705,0.25]
[1643473029665,6.0,93.819,93.704,6.0]
[1643473029866,13.14831142,93.818,93.704,6.0]
[1643473030263,10.19162,93.818,93.704,6.0]
[1643473030666,10.19162,93.818,93.704,5.5]
[1643473030869,6.0,93.819,93.704,5.5]
[1643473032468,6.0,93.819,93.694,23.0523]
[1643473032866,6.0,93.819,93.695,15.84616334]
[1643473033064,6.0,93.819,93.7,16.002]
[1643473033866,6.0,93.819,93.71,6.0]
[1643473034065,15.595783,93.836,93.707,6.0]
[1643473034265,15.595783,93.836,93.707,19.29]
[1643473034466,34.49296571,93.825,93.694,23.0523]
[1643473034669,12.76,93.82,93.694,23.0523]
[1643473034870,104.9,93.819,93.669,1.47103089]
[1643473035078,104.9,93.817,93.667,1.47103089]
[1643473035272,10.19162,93.816,93.668,0.25]
[1643473035571,42.37189058,93.799,93.674,6.0]
[1643473035770,12.76,93.79,93.674,6.0]
[1643473036469,15.595783,93.789,93.659,7.47103089]
[1643473036670,16.015,93.78,93.668,6.0]
[1643473036868,16.015,93.78,93.666,1.47103089]
[1643473037069,41.59954535,93.784,93.665,1.47103089]
[1643473037269,41.59954535,93.784,93.666,1.47103089]
[1643473037472,41.59954535,93.784,93.66,6.0]
[1643473037674,12.76,93.78,93.66,6.0]
[1643473037873,12.76,93.78,93.668,6.0]
[1643473038173,12.76,93.78,93.669,6.0]
[1643473038873,12.76,93.78,93.667,6.0]
[1643473039074,12.76,93.78,93.672,6.0]
[1643473039274,12.76,93.78,93.673,0.25]
[1643473039475,12.76,93.78,93.671,6.0]
[1643473039876,12.76,93.78,93.672,6.25]
[1643473040079,12.76,93.78,93.672,15.47791626]
[1643473040380,41.59954535,93.784,93.672,15.47791626]
[1643473040578,16.012,93.79,93.672,15.47791626]
[1643473041184,16.012,93.79,93.671,6.0]
[1643473041386,6.0,93.78,93.671,6.0]
[1643473041584,6.0,93.78,93.67,6.0]
[1643473041785,6.0,93.78,93.671,0.25]
[1643473041980,42.77290704,93.784,93.674,6.0]
[1643473042179,40.27290704,93.784,93.674,6.0]
[1643473042381,40.27290704,93.784,93.675,0.25]
[1643473042580,40.27290704,93.784,93.671,6.0]
[1643473042784,40.27290704,93.784,93.672,12.25380889]
[1643473043382,16.015,93.78,93.671,6.0]
[1643473043588,16.015,93.78,93.673,6.0]
[1643473043781,16.015,93.78,93.674,105.15]
[1643473043983,16.015,93.78,93.684,6.0]
[1643473044386,16.015,93.78,93.685,0.25]
[1643473045187,16.011,93.8,93.685,0.25]
[1643473045384,16.011,93.8,93.684,6.0]
[1643473045586,16.011,93.8,93.685,6.0]
[1643473045986,6.0,93.79,93.685,6.0]
[1643473046386,6.0,93.79,93.675,24.2204]
[1643473046588,6.0,93.79,93.676,12.25010472]
[1643473046986,51.15658637,93.799,93.686,6.0]
[1643473047391,6.0,93.789,93.686,6.0]
[1643473047591,6.0,93.789,93.688,6.0]
[1643473047991,6.0,93.789,93.676,1.47103089]
[1643473048193,6.0,93.789,93.675,25.69143089]
[1643473048391,6.0,93.789,93.676,0.25]
[1643473048593,6.0,93.789,93.688,1.47103089]
[1643473048992,6.0,93.789,93.689,1.47103089]
[1643473049791,12.76,93.79,93.69,1.72103089]
[1643473049995,12.76,93.79,93.69,1.47103089]
[1643473050192,12.76,93.79,93.692,1.47103089]
[1643473050393,12.76,93.79,93.695,1.47103089]
[1643473050592,12.76,93.79,93.696,12.94388881]
[1643473050894,12.76,93.79,93.695,1.47103089]
[1643473051092,12.76,93.79,93.697,1.47103089]
[1643473051292,12.76,93.79,93.695,1.47103089]
[1643473051692,12.76,93.79,93.697,1.47103089]
[1643473051892,12.76,93.79,93.697,7.47103089]
[1643473052096,1.40135665,93.816,93.707,6.0]
[1643473052293,1.40135665,93.835,93.715,1.47103089]
[1643473052496,1.40135665,93.858,93.739,1.47103089]
[1643473052692,1.40135665,93.863,93.744,1.47103089]
[1643473052892,33.35483786,93.862,93.745,0.25]
[1643473053094,33.35483786,93.862,93.754,6.0]
[1643473053298,33.35483786,93.862,93.755,0.25]
[1643473053498,33.35483786,93.862,93.759,6.0]
[1643473053895,33.35483786,93.862,93.76,6.25]
[1643473054296,33.35483786,93.862,93.76,0.25]
[1643473054597,6.0,93.852,93.76,0.25]
[1643473054797,12.76,93.87,93.744,0.25]
[1643473054997,1121.73436951,94.826,93.744,0.25]
[1643473054998,1.40135665,93.885,93.753,6.0]
[1643473055197,1.40135665,93.885,93.761,104.9]